bitfinex/quotes_ETHUSD_20250324
["timestamp","ask_amount","ask_price","bid_price","bid_amount"]
[1742776243615,7.96697,2013.3,2013.1,8.1395]
[1742776243851,7.96697,2013.3,2013.1,4.903]
[1742776244155,4.96748,2013.1,2012.9,27.462]
[1742776244353,4.96748,2013.1,2013.0,4.915]
[1742776244750,4.96721,2013.2,2013.0,4.915]
[1742776244943,4.96697,2013.3,2013.0,4.915]
[1742776245142,4.96746,2013.1,2013.0,4.915]
[1742776246262,7.9677,2013.0,2012.9,27.462]
[1742776246470,7.9677,2013.0,2012.9,32.373]
[1742776246651,3.0,2013.0,2012.9,32.373]
[1742776247678,7.9677,2013.0,2012.9,27.462]
[1742776247862,7.9677,2013.0,2012.9,32.37]
[1742776248625,3.0,2013.0,2012.9,32.37]
[1742776249169,3.0,2013.0,2012.9,36.103844]
[1742776249355,3.0,2013.2,2012.9,36.881244]
[1742776249856,4.96613,2013.7,2013.1,4.96723]
[1742776250183,4.96499,2014.1,2013.1,4.96746]
[1742776250358,4.9661,2013.7,2013.3,0.7598]
[1742776250554,4.9661,2013.7,2013.4,4.91]
[1742776250955,4.96548,2014.0,2013.4,4.91]
[1742776251156,4.96499,2014.1,2013.4,4.91]
[1742776251359,4.96641,2013.6,2013.4,4.91]
[1742776251545,4.96632,2013.6,2013.4,5.5344286]
[1742776251741,9.93272,2013.6,2013.4,5.5344286]
[1742776251938,4.96632,2013.6,2013.4,5.5344286]
[1742776252326,4.96647,2013.5,2013.4,5.5344286]
[1742776253049,4.96539,2014.0,2013.4,5.5324286]
[1742776253050,3.0,2013.7,2013.4,5.5324286]
[1742776253233,3.0,2013.7,2013.5,1.12591686]
[1742776253439,7.96598,2013.7,2013.5,1.12591686]
[1742776253960,4.96622,2013.6,2013.5,1.12591686]
[1742776254175,4.96647,2013.5,2013.3,0.7598]
[1742776254376,3.0,2013.9,2013.5,4.906]
[1742776254556,4.96526,2014.0,2013.5,9.87233]
[1742776254743,7.96558,2013.9,2013.5,4.906]
[1742776254935,7.96558,2013.9,2013.5,5.96925]
[1742776255257,7.96599,2013.7,2013.5,5.96925]
[1742776256135,9.93266,2013.6,2013.3,0.7598]
[1742776256461,7.96647,2013.5,2013.4,4.905]
[1742776256836,3.0,2013.5,2013.4,4.905]
[1742776257433,7.96647,2013.5,2013.4,4.905]
[1742776257629,3.0,2013.5,2013.4,4.905]
[1742776258066,4.96672,2013.4,2013.2,0.574486]
[1742776258370,4.96696,2013.3,2013.1,0.7598]
[1742776258570,4.96696,2013.3,2013.2,4.901]
[1742776259670,3.0,2013.5,2013.2,4.901]
[1742776259874,3.0,2013.5,2013.3,4.96675]
[1742776260055,3.0,2013.5,2013.2,9.8682]
[1742776260257,7.96648,2013.5,2013.1,0.7598]
[1742776260463,4.96681,2013.4,2013.2,4.9]
[1742776260760,4.96681,2013.4,2013.3,0.76085962]
[1742776261334,7.96648,2013.5,2013.3,0.76085962]
[1742776261572,3.0,2013.5,2013.3,0.76085962]
[1742776261937,3.0,2013.5,2013.4,5.72652]
[1742776262140,3.0,2013.5,2013.4,1.40853796]
[1742776262735,3.0,2013.5,2013.4,6.37525796]
[1742776262939,3.0,2013.5,2013.4,6.42491865]
[1742776263434,3.0,2013.5,2013.4,6.42491817]
[1742776263639,3.0,2013.5,2013.4,6.37525796]
[1742776264072,3.0,2013.5,2013.4,5.61545796]
[1742776264371,3.0,2013.5,2013.4,6.37525796]
[1742776265247,3.0,2013.8,2013.7,4.96598]
[1742776265441,3.0,2013.8,2013.5,4.96647]
[1742776265442,0.55,2014.5,2014.0,4.96524]
[1742776265672,4.96434,2014.4,2013.9,5.76404]
[1742776265873,9.92878,2014.4,2013.9,5.76404]
[1742776266059,4.96476,2014.2,2013.9,0.7986]
[1742776266258,9.92962,2014.2,2013.9,1.4743493]
[1742776266470,4.96476,2014.2,2013.9,1.4743493]
[1742776266667,4.96455,2014.3,2013.9,1.4743493]
[1742776266875,4.96485,2014.2,2013.9,1.4743493]
[1742776267281,3.0,2014.0,2013.7,5.76448]
[1742776267649,7.96534,2014.0,2013.7,0.7986]
[1742776267852,7.96525,2014.0,2013.7,0.7986]
[1742776268053,12.93059,2014.0,2013.7,0.7986]
[1742776268373,4.96556,2013.9,2013.7,0.7986]
[1742776268548,4.96556,2013.9,2013.5,0.7986]
[1742776268754,7.96582,2013.8,2013.6,0.6413958]
[1742776268979,7.96582,2013.8,2013.5,0.7986]
[1742776269155,3.0,2013.6,2013.5,0.7986]
[1742776270890,3.0,2013.6,2013.5,1.2570122]
[1742776271064,7.96551,2013.9,2013.5,6.2233022]
[1742776271260,7.96551,2013.9,2013.6,0.68720402]
[1742776271878,3.0,2013.9,2013.6,0.68720402]
[1742776272293,3.0,2014.0,2013.6,4.96611]
[1742776272491,4.96545,2014.0,2013.5,0.7986]
[1742776272727,4.96545,2014.0,2013.5,5.76504]
[1742776272879,3.0,2014.0,2013.6,5.01579196]
[1742776273062,3.0,2014.0,2013.6,4.96613]
[1742776273378,7.96434,2014.4,2013.9,4.96533]
[1742776273579,7.96434,2014.4,2013.9,9.93066]
[1742776273783,7.96426,2014.4,2014.0,4.96504]
[1742776274164,7.96426,2014.4,2014.1,0.55]
[1742776274361,4.96426,2014.4,2014.2,4.913]
[1742776274789,4.9645,2014.3,2014.2,4.913]
[1742776275063,4.96503,2014.1,2014.0,0.55]
[1742776275261,3.0,2014.4,2014.0,13.30969]
[1742776275495,7.96428,2014.4,2014.0,13.30955]
[1742776275864,4.96455,2014.3,2014.0,8.34446]
[1742776276063,4.96486,2014.2,2014.0,5.463]
[1742776276260,4.96499,2014.1,2014.0,0.55]
[1742776276465,4.96499,2014.1,2014.0,5.467]
[1742776276886,4.96524,2014.0,2013.9,27.466]
[1742776277085,4.96524,2014.0,2013.9,32.382]
[1742776277474,7.96524,2014.0,2013.9,27.466]
[1742776277693,7.96524,2014.0,2013.2,4.96712]
[1742776277694,4.96621,2013.7,2013.3,28.2636]
[1742776277907,4.96647,2013.5,2013.4,4.917]
[1742776278401,4.96632,2013.6,2013.4,4.917]
[1742776278598,4.96647,2013.5,2013.4,4.917]
[1742776278801,4.96647,2013.5,2013.4,4.915]
[1742776279101,4.96647,2013.5,2013.4,5.465]
[1742776279800,4.96647,2013.5,2013.4,0.55]
[1742776279997,4.96672,2013.4,2013.3,27.465]
[1742776280205,4.96672,2013.4,2013.3,32.927]
[1742776280588,4.96653,2013.5,2013.3,32.927]
[1742776280900,4.96672,2013.4,2013.3,32.927]
[1742776282584,4.96672,2013.4,2013.3,27.465]
[1742776282785,5.76622,2013.4,2013.3,4.904]
[1742776282986,4.96772,2013.0,2012.8,0.7529]
[1742776283183,4.96772,2013.0,2012.9,5.456]
[1742776283387,4.96772,2013.0,2012.9,4.906]
[1742776283792,4.96819,2012.9,2012.7,27.467]
[1742776284109,4.9682,2012.8,2012.7,27.467]
[1742776284308,4.96943,2012.3,2012.2,0.7529]
[1742776284510,4.96943,2012.3,2012.2,4.91]
[1742776284978,4.9699,2012.2,2012.0,27.468]
[1742776285179,4.96949,2012.3,2012.1,4.91]
[1742776285379,4.96949,2012.3,2012.1,8.22309]
[1742776285889,4.96968,2012.2,2012.1,8.77309]
[1742776286097,4.96968,2012.2,2012.1,0.55]
[1742776286409,4.96993,2012.1,2012.0,27.468]
[1742776286609,4.96993,2012.1,2012.0,32.376]
[1742776287204,4.96968,2012.2,2012.0,32.376]
[1742776287508,7.969,2012.5,2012.2,0.55]
[1742776287673,7.969,2012.5,2012.2,2.56132737]
[1742776288089,4.969,2012.5,2012.2,2.56132737]
[1742776288473,0.7995,2012.6,2012.2,2.56132737]
[1742776288697,4.96934,2012.4,2012.2,0.55]
[1742776288888,4.96943,2012.3,2012.1,0.55]
[1742776289690,0.7995,2012.6,2012.1,0.55]
[1742776289895,4.96922,2012.4,2012.1,0.55]
[1742776290507,9.93807,2012.5,2012.1,0.55]
[1742776290703,4.96924,2012.4,2012.1,4.91193]
[1742776291113,4.96947,2012.3,2012.1,4.91193]
[1742776291492,9.9386,2012.4,2012.1,4.91193]
[1742776291705,4.96924,2012.4,2012.1,4.91193]
[1742776292019,4.96894,2012.5,2012.1,4.91193]
[1742776292533,7.96857,2012.7,2012.3,0.55]
[1742776292690,7.96857,2012.7,2012.5,0.55]
[1742776292691,3.0,2012.7,2012.5,0.55]
[1742776292889,7.96845,2012.7,2012.5,0.55]
[1742776294589,4.9682,2012.8,2012.5,0.55]
[1742776294916,4.9682,2012.8,2012.6,0.62305]
[1742776295121,9.9366,2012.8,2012.5,0.55]
[1742776295421,4.9682,2012.8,2012.5,0.55]
[1742776295608,4.96855,2012.7,2012.5,0.55]
[1742776295816,9.93657,2012.8,2012.5,0.55]
[1742776296000,4.96799,2012.9,2012.6,0.04968281]
[1742776296327,3.0,2013.0,2012.6,0.55]
[1742776296488,7.96772,2013.0,2012.6,5.51859]
[1742776296695,12.93563,2013.0,2012.6,0.55]
[1742776296908,12.93563,2013.0,2012.6,2.16685]
[1742776297226,4.96798,2012.9,2012.6,2.16685]
[1742776297412,4.96834,2012.8,2012.6,2.16685]
[1742776297609,7.96773,2013.0,2012.4,5.6805]
[1742776297920,7.96773,2013.0,2012.2,8.25038017]
[1742776297921,8.76856,2012.8,2012.5,5.448]
[1742776298223,4.96749,2013.1,2012.8,0.55]
[1742776298521,4.96749,2013.1,2013.0,0.55]
[1742776298898,4.9677,2013.0,2012.6,0.8121]
[1742776299220,4.9677,2013.0,2012.7,6.035101]
[1742776299838,4.96796,2012.9,2012.7,6.035101]
[1742776300194,4.9677,2013.0,2012.7,6.035101]
[1742776300195,4.96777,2013.0,2012.7,6.035101]
[1742776301031,4.96806,2012.9,2012.7,6.035101]
[1742776301208,4.96806,2012.9,2012.7,0.55]
[1742776301407,4.96833,2012.8,2012.5,0.55]
[1742776301609,9.93674,2012.8,2012.6,4.902]
[1742776302027,4.96833,2012.8,2012.6,4.902]
[1742776302217,4.96802,2012.9,2012.6,4.902]
[1742776302417,4.96802,2012.9,2012.7,1.04705922]
[1742776302792,4.96802,2012.9,2012.6,4.902]
[1742776303437,4.96795,2013.0,2012.7,0.5996821]
[1742776303610,7.96746,2013.1,2012.7,0.55]
[1742776303807,7.96746,2013.1,2012.9,0.55]
[1742776304010,3.0,2013.1,2013.0,4.897]
[1742776304211,4.96677,2013.4,2013.1,0.55]
[1742776304417,4.96668,2013.5,2013.2,0.8121]
[1742776304418,4.96667,2013.5,2013.2,0.8121]
[1742776304726,7.96683,2013.4,2013.2,0.8121]
[1742776304891,7.96683,2013.4,2013.1,0.55]
[1742776304892,4.96701,2013.3,2013.1,0.55]
[1742776305317,9.93418,2013.3,2013.1,0.55]
[1742776305592,7.96623,2013.6,2013.0,4.897]
[1742776305593,9.93477,2013.2,2013.0,0.55]
[1742776305795,9.93477,2013.2,2013.1,5.449]
[1742776305993,4.96737,2013.2,2013.1,5.449]
[1742776306232,4.96737,2013.2,2013.1,0.55]
[1742776306399,4.96737,2013.2,2013.1,4.9]
[1742776307335,4.96756,2013.1,2012.9,27.481]
[1742776307535,4.96756,2013.1,2013.0,4.897]
[1742776307837,9.93461,2013.2,2013.0,4.897]
[1742776308137,4.96702,2013.3,2013.1,0.55]
[1742776308351,3.0,2013.4,2013.1,0.55]
[1742776308516,7.96677,2013.4,2013.1,1.41176958]
[1742776308838,7.96677,2013.4,2013.1,1.3621]
[1742776309027,7.96677,2013.4,2013.1,5.05861788]
[1742776309222,4.96605,2013.7,2013.3,0.55]
[1742776309423,0.8003,2013.8,2013.5,0.55]
[1742776309623,0.8003,2014.0,2013.5,6.32855]
[1742776309824,4.9655,2013.9,2013.7,0.55]
[1742776310029,4.96606,2013.7,2013.3,4.96692]
[1742776310205,4.9665,2013.5,2013.4,4.904]
[1742776310409,4.9665,2013.5,2013.4,5.454]
[1742776310637,4.9665,2013.5,2013.4,4.904]
[1742776310803,4.96696,2013.3,2013.2,0.45840321]
[1742776311003,7.96696,2013.3,2013.2,0.45840321]
[1742776311637,7.96745,2013.2,2013.0,0.55]
[1742776312035,4.96688,2013.4,2013.0,0.55]
[1742776312244,4.96682,2013.4,2013.1,0.7646]
[1742776312439,9.93425,2013.3,2013.1,0.7646]
[1742776312638,4.96707,2013.3,2013.1,0.7646]
[1742776312842,4.96721,2013.2,2012.9,32.391]
[1742776313023,4.96748,2013.1,2013.0,0.55]
[1742776313218,4.96726,2013.2,2013.0,0.55]
[1742776313410,9.93469,2013.2,2013.0,0.55]
[1742776313610,4.96726,2013.2,2013.0,0.55]
[1742776313929,3.0,2013.5,2013.0,3.79475065]
[1742776314265,0.788,2013.9,2013.4,0.55]
[1742776314411,3.0,2013.6,2013.5,5.464]
[1742776314843,3.0,2013.7,2013.6,0.55]
[1742776315251,7.96598,2013.7,2013.6,0.55]
[1742776315807,4.96575,2013.8,2013.6,1.0964]
[1742776315808,4.96579,2013.8,2013.6,1.0964]
[1742776316012,4.96549,2013.9,2013.7,0.7646]
[1742776317315,4.96541,2014.0,2013.7,0.7646]
[1742776317512,4.96541,2014.0,2013.8,0.55]
[1742776317712,7.96541,2014.0,2013.9,4.908]
[1742776318451,8.75341,2014.0,2013.9,4.908]
[1742776320138,4.9662,2013.7,2013.3,1.73613578]
[1742776320339,9.9328,2013.6,2013.4,5.57233158]
[1742776320524,9.9327,2013.6,2013.5,0.55]
[1742776320725,4.96598,2013.8,2013.5,0.55]
[1742776320929,12.93136,2013.9,2013.5,0.55]
[1742776321356,7.96575,2013.8,2013.5,0.55]
[1742776321584,7.96514,2014.1,2013.7,1.3146]
[1742776321717,3.0,2013.9,2013.6,1.10888416]
[1742776322051,3.0,2013.9,2013.4,1.43493158]
[1742776322052,4.96607,2013.7,2013.5,0.55]
[1742776322255,12.93136,2013.9,2013.6,4.906]
[1742776322650,12.93124,2013.9,2013.6,4.906]
[1742776323051,4.96578,2013.8,2013.6,4.906]
[1742776323354,4.96598,2013.7,2013.6,5.456]
[1742776324252,4.96578,2013.8,2013.6,5.456]
[1742776324426,4.96578,2013.8,2013.6,6.14509316]
[1742776324627,7.96549,2013.9,2013.7,0.55]
[1742776324834,12.93109,2013.9,2013.7,0.55]
[1742776325153,7.96549,2013.9,2013.7,0.55]
[1742776325386,3.0,2013.9,2013.8,1.95540932]
[1742776325720,7.96548,2013.9,2013.8,1.95540932]
[1742776325933,7.96548,2013.9,2013.6,6.38599316]
[1742776325934,4.9658,2013.8,2013.6,6.38599316]
[1742776326258,4.9658,2013.8,2013.7,0.55]
[1742776327968,7.96556,2013.9,2013.7,0.55]
[1742776328269,4.96573,2013.8,2013.7,0.55]
[1742776328632,7.96556,2013.9,2013.7,0.55]
[1742776328836,7.96556,2013.9,2013.7,1.0956]
[1742776329165,4.96573,2013.8,2013.7,1.0956]
[1742776329370,4.96573,2013.8,2013.7,0.55]
[1742776329546,7.96554,2013.9,2013.7,0.55]
[1742776329743,7.96554,2013.9,2013.7,5.441]
[1742776329947,0.788,2014.2,2013.8,5.75652]
[1742776330146,4.9646,2014.3,2013.9,0.55]
[1742776330384,3.0,2014.1,2013.9,1.669752]
[1742776330671,4.9643,2014.4,2013.9,6.635052]
[1742776330876,4.96404,2014.5,2014.2,0.7909]
[1742776331061,4.96404,2014.5,2014.3,4.895]
[1742776331574,4.96356,2014.7,2014.4,0.55]
[1742776331777,0.3767505,2015.1,2014.6,0.55]
[1742776331778,4.96269,2015.1,2014.6,0.55]
[1742776331983,0.7947,2015.2,2014.6,0.55]
[1742776331984,0.7947,2015.2,2014.8,0.55]
[1742776332281,9.92441,2015.3,2015.0,0.55]
[1742776332591,4.9622,2015.3,2015.1,4.899]
[1742776332792,3.0,2015.2,2015.1,4.899]
[1742776333283,4.9612,2015.7,2015.3,1.3409]
[1742776333647,4.96078,2015.9,2015.3,1.3409]
[1742776333850,4.96083,2015.8,2015.4,0.55]
[1742776334085,4.96083,2015.8,2015.6,0.55]
[1742776334285,5.75429,2016.3,2015.6,1.3409]
[1742776334579,4.96021,2016.1,2015.8,0.55]
[1742776334784,4.95983,2016.2,2016.0,0.55]
[1742776335348,4.9597,2016.3,2016.1,0.7909]
[1742776335676,4.95983,2016.2,2016.1,1.3409]
[1742776336103,0.01,2016.4,2016.1,0.7909]
[1742776336275,0.01,2016.4,2016.2,0.55]
[1742776336447,4.96933,2016.4,2016.3,6.119085]
[1742776336649,0.11294223,2016.4,2016.3,6.119085]
[1742776337786,0.11294223,2016.4,2016.3,11.869555]
[1742776337968,0.01,2016.4,2016.3,11.869555]
[1742776338172,0.01,2016.4,2016.3,11.867555]
[1742776338572,0.1209508,2016.9,2016.5,0.7909]
[1742776338762,0.1209508,2016.9,2016.7,0.55]
[1742776339096,4.95859,2016.7,2016.6,27.453]
[1742776339288,3.0,2016.7,2016.6,32.397]
[1742776339583,3.0,2016.7,2016.6,32.947]
[1742776339948,7.95859,2016.7,2016.6,32.947]
[1742776340167,4.95933,2016.4,2016.3,0.7909]
[1742776340369,4.95933,2016.4,2016.1,0.8068]
[1742776340550,4.95933,2016.4,2016.3,5.511]
[1742776340973,4.95914,2016.5,2016.4,0.55]
[1742776341150,7.95877,2016.7,2016.4,0.55]
[1742776341348,7.95877,2016.7,2016.6,0.55]
[1742776341774,7.95877,2016.7,2016.6,5.514]
[1742776341969,4.95884,2016.6,2016.5,1.3568]
[1742776342182,4.95884,2016.6,2016.5,6.3198]
[1742776342363,4.95949,2016.4,2016.2,3.72998377]
[1742776342558,4.95949,2016.4,2016.3,5.33799838]
[1742776342763,4.95914,2016.5,2016.4,0.55]
[1742776343290,4.95885,2016.6,2016.4,0.55]
[1742776344494,4.95855,2016.8,2016.4,0.55]
[1742776344657,4.95849,2016.8,2016.6,0.55]
[1742776344987,3.1209508,2016.9,2016.8,0.55]
[1742776345173,8.0790508,2016.9,2016.5,1.89155384]
[1742776345388,4.95878,2016.7,2016.6,5.522]
[1742776345582,4.95884,2016.6,2016.5,0.55]
[1742776345778,4.95884,2016.6,2016.5,5.522]
[1742776345967,4.95878,2016.7,2016.6,0.55]
[1742776346169,4.95837,2016.8,2016.6,0.55]
[1742776346369,8.0791408,2016.9,2016.8,0.55]
[1742776346592,8.0791408,2016.9,2016.5,4.972]
[1742776346593,4.9586,2016.7,2016.6,0.55]
[1742776347298,3.1209508,2016.9,2016.6,0.55]
[1742776347299,0.1209508,2016.9,2016.6,0.55]
[1742776347467,0.1209508,2016.9,2016.7,0.8068]
[1742776347662,0.1209508,2016.9,2016.7,5.76539]
[1742776347875,0.1209508,2016.9,2016.8,1.127412]
[1742776348401,0.1209508,2016.9,2016.8,34.072752]
[1742776349186,0.1209508,2016.9,2016.8,29.114412]
[1742776349360,0.1209508,2016.9,2016.8,34.098412]
[1742776349566,0.22092863,2016.9,2016.8,34.098412]
[1742776349762,0.22092863,2016.9,2016.8,39.863552]
[1742776351171,0.1209508,2016.9,2016.8,39.863552]
[1742776351500,0.22070896,2016.9,2016.8,40.87140175]
[1742776352301,3.0,2017.3,2017.0,0.8068]
[1742776352488,3.0,2017.5,2017.2,0.55]
[1742776352687,3.0,2017.5,2017.4,0.55]
[1742776353211,7.95662,2017.5,2017.4,0.55]
[1742776353611,7.95662,2017.5,2017.4,1.3568]
[1742776354211,7.95662,2017.5,2017.4,0.55]
[1742776354410,4.95721,2017.3,2017.1,1.438281]
[1742776354703,7.95662,2017.5,2016.9,0.8068]
[1742776354704,4.95761,2017.1,2016.9,0.8068]
[1742776354872,4.95761,2017.1,2017.0,4.975]
[1742776355073,4.95737,2017.2,2017.0,4.975]
[1742776355421,4.95761,2017.1,2017.0,5.525]
[1742776355583,4.95713,2017.3,2017.1,0.55]
[1742776355977,4.95736,2017.2,2017.1,0.55]
[1742776356206,4.95713,2017.3,2017.1,0.55]
[1742776356503,4.95736,2017.2,2017.1,0.55]
[1742776358510,4.95692,2017.4,2017.1,0.55]
[1742776358680,12.91358,2017.5,2017.2,0.91154062]
[1742776358875,4.95712,2017.3,2017.2,0.91154062]
[1742776359075,9.91413,2017.4,2017.1,0.55]
[1742776359300,4.95705,2017.4,2017.1,0.55]
[1742776359502,7.95659,2017.6,2017.3,1.303]
[1742776359819,12.91314,2017.6,2017.5,0.55]
[1742776361086,7.95655,2017.6,2017.5,0.55]
[1742776361579,9.93761,2017.9,2017.5,1.1773]
[1742776361812,4.95621,2017.7,2017.5,1.1773]
[1742776362310,4.95638,2017.6,2017.5,1.1773]
[1742776362882,4.95621,2017.7,2017.5,0.55]
[1742776363221,4.95662,2017.5,2017.4,4.96]
[1742776365391,4.95729,2017.3,2017.1,1.01617958]
[1742776365586,4.95729,2017.3,2017.2,5.523]
[1742776365884,4.95729,2017.3,2017.2,4.973]
[1742776366086,3.0,2017.5,2017.3,0.753]
[1742776366326,3.0,2017.7,2017.3,0.753]
[1742776366516,3.0,2017.7,2017.5,0.55]
[1742776366813,4.98177,2017.9,2017.7,0.55]
[1742776366993,7.95589,2017.8,2017.7,0.55]
[1742776368180,3.0,2017.8,2017.6,5.03655807]
[1742776368385,4.95613,2017.7,2017.6,6.23186272]
[1742776368915,4.95638,2017.6,2017.5,0.99730257]
[1742776369221,8.75762,2017.5,2017.4,0.36476659]
[1742776370429,8.75762,2017.5,2017.1,4.988]
[1742776370430,4.95736,2017.2,2017.1,4.988]
[1742776370583,4.9572,2017.3,2017.1,5.538]
[1742776370783,7.9572,2017.3,2017.2,0.5538]
[1742776371282,7.9572,2017.3,2017.2,1.1038]
[1742776371283,3.0,2017.3,2017.2,1.1038]
[1742776371589,7.95712,2017.3,2017.2,1.56015618]
[1742776371985,3.0,2017.3,2017.2,1.56015618]
[1742776373722,7.95712,2017.3,2017.2,1.56015618]
[1742776374018,3.0,2017.3,2017.2,1.56015618]
[1742776374537,4.95615,2017.7,2017.5,0.772]
[1742776374833,4.95615,2017.7,2017.6,5.523]
[1742776374998,7.95615,2017.7,2017.6,5.523]
[1742776375331,9.91206,2017.8,2017.6,6.1525]
[1742776375498,3.0,2017.7,2017.6,6.1525]
[1742776375694,4.95595,2017.8,2017.6,6.60885618]
[1742776376397,7.95613,2017.7,2017.6,1.00635618]
[1742776376834,8.72953,2017.7,2017.6,5.42635618]
[1742776377217,7.95613,2017.7,2017.6,5.42635618]
[1742776378225,7.95613,2017.7,2017.6,4.97]
[1742776382434,7.95613,2017.7,2017.6,5.42695888]
[1742776382639,7.95613,2017.7,2017.6,5.96965477]
[1742776382959,3.0,2017.7,2017.6,7.29165477]
[1742776383235,0.026,2017.9,2017.7,0.55]
[1742776383433,4.95589,2017.8,2017.6,34.15865477]
[1742776383639,4.95602,2017.8,2017.7,4.974]
[1742776383835,7.95602,2017.8,2017.7,4.974]
[1742776384038,3.0,2017.7,2017.6,27.87395888]
[1742776384239,7.95602,2017.8,2017.6,32.84995888]
[1742776384538,4.95613,2017.7,2017.6,32.84995888]
[1742776384909,4.95613,2017.7,2017.6,27.87395888]
[1742776385109,4.95613,2017.7,2017.6,32.84795888]
[1742776385321,4.95613,2017.7,2017.6,5.43095888]
[1742776385643,8.76623,2017.7,2017.6,5.43495888]
[1742776385808,8.76623,2017.7,2017.6,0.45695888]
[1742776386153,7.95613,2017.7,2017.6,0.45695888]
[1742776386441,8.76623,2017.7,2017.6,0.45695888]
[1742776386740,8.76623,2017.7,2017.6,8.88e-06]
[1742776387114,5.76746,2017.2,2017.1,32.398]
[1742776387311,8.76746,2017.2,2017.1,32.398]
[1742776387506,8.76746,2017.2,2017.1,4.982]
[1742776388341,7.95736,2017.2,2017.1,4.982]
[1742776388911,7.95736,2017.2,2016.8,4.9581]
[1742776388912,7.95748,2017.2,2017.0,0.7557]
[1742776389112,4.95748,2017.2,2017.1,4.98]
[1742776391517,3.8101,2017.5,2017.1,4.971]
[1742776391849,7.95736,2017.2,2017.1,2.1698]
[1742776392017,4.95834,2016.8,2016.7,0.98944492]
[1742776392220,4.95834,2016.8,2016.7,5.96344492]
[1742776392765,4.95786,2017.0,2016.7,5.96344492]
[1742776392970,12.91552,2017.1,2016.8,0.55]
[1742776393248,7.95788,2017.0,2016.8,0.55]
[1742776393459,3.0,2017.0,2016.8,0.55]
[1742776393623,4.95746,2017.2,2016.9,1.48854794]
[1742776393821,9.91503,2017.2,2016.9,1.48854794]
[1742776394162,4.95746,2017.2,2017.0,0.76]
[1742776394360,4.95746,2017.2,2017.1,4.976]
[1742776394654,7.95718,2017.3,2017.1,4.976]
[1742776394862,4.95701,2017.4,2017.1,6.19426279]
[1742776395215,4.957,2017.4,2017.1,6.19426279]
[1742776395844,4.957,2017.4,2017.1,6.09426279]
[1742776396155,4.95713,2017.3,2017.1,6.09426279]
[1742776396447,4.95691,2017.4,2017.2,0.68542628]
[1742776396651,7.95668,2017.5,2017.2,0.68542628]
[1742776397232,4.95668,2017.5,2017.2,0.68542628]
[1742776397432,4.95653,2017.6,2017.4,0.76]
[1742776397636,4.9559,2017.8,2017.5,4.97]
[1742776397968,4.95615,2017.7,2017.5,4.97]
[1742776398129,4.98165,2017.9,2017.5,6.09369]
[1742776398446,4.98165,2017.9,2017.7,0.76]
[1742776399254,0.026,2017.9,2017.7,0.76]
[1742776399458,2.041967,2018.3,2017.9,4.9554]
[1742776399656,2.041967,2018.3,2018.2,5.71491]
[1742776399829,2.041967,2018.3,2018.2,6.314]
[1742776400244,2.041967,2018.3,2018.2,11.26891]
[1742776401236,2.041967,2018.3,2018.2,1.31]
[1742776401436,2.041967,2018.3,2018.2,5.50373306]
[1742776401437,9.946627,2018.3,2018.2,5.50373306]
[1742776402965,9.946627,2018.3,2018.2,5.048]
[1742776403330,4.9554,2018.0,2017.9,32.463]
[1742776403861,8.7886,2018.0,2017.9,32.463]
[1742776404223,4.95662,2017.5,2017.4,0.8055]
[1742776404565,4.95662,2017.5,2017.4,8.48759263]
[1742776405059,4.95662,2017.5,2017.4,7.93759263]
[1742776405255,4.95662,2017.5,2017.4,5.047]
[1742776405659,4.95642,2017.6,2017.4,5.047]
[1742776405964,4.95624,2017.7,2017.5,5.045]
[1742776406754,8.78873,2018.0,2017.6,4.95622]
[1742776407255,4.95604,2017.8,2017.5,5.045]
[1742776407461,4.95564,2017.9,2017.6,1.73125302]
[1742776408057,7.95545,2018.0,2017.6,1.73125302]
[1742776408356,7.95549,2018.0,2017.8,1.3555]
[1742776408563,4.95564,2017.9,2017.8,0.8055]
[1742776408762,4.95564,2017.9,2017.8,5.8515]
[1742776408964,7.95549,2018.0,2017.8,7.20521079]
[1742776409256,1.991967,2018.3,2017.9,0.55]
[1742776409472,6.946627,2018.3,2018.0,0.04954741]
[1742776409645,6.946627,2018.3,2018.2,0.55]
[1742776409976,6.946627,2018.3,2018.2,5.603]
[1742776410185,1.991967,2018.3,2018.2,5.603]
[1742776410475,1.991967,2018.3,2018.2,8.98525]
[1742776410833,1.85785984,2018.3,2018.2,8.98525]
[1742776411445,6.90632688,2018.3,2018.2,8.98525]
[1742776412075,1.95166688,2018.3,2018.2,8.98525]
[1742776412257,6.90632688,2018.3,2018.2,8.98525]
[1742776412452,6.90632688,2018.3,2018.2,5.603]
[1742776412655,6.90632688,2018.3,2018.2,5.053]
[1742776413776,6.90632688,2018.3,2018.2,5.8101]
[1742776414278,6.90632688,2018.3,2018.2,5.053]
[1742776414444,6.90632688,2018.3,2017.8,1.3071]
[1742776414650,4.95506,2018.2,2017.9,0.55]
[1742776414877,0.0942563,2018.2,2018.0,9.9962]
[1742776415047,0.0942563,2018.2,2018.1,0.55]
[1742776415580,0.0942563,2018.2,2018.1,6.36869509]